bitfinex-derivatives/quotes_SOLF0:USTF0_20250820
["timestamp","ask_amount","ask_price","bid_price","bid_amount"]
[1755725332159,2.98,186.09,186.06,2.82]
[1755725333163,5.3739,186.08,186.06,2.82]
[1755725336666,8.3639,186.08,186.06,2.82]
[1755725336870,5.3739,186.08,186.06,2.96]
[1755725337057,5.3739,186.08,186.07,2.96]
[1755725337465,5.3739,186.08,186.05,2.96]
[1755725337668,5.3739,186.08,186.04,5.3748]
[1755725337856,5.3739,186.08,186.06,2.96]
[1755725338463,8.3639,186.08,186.06,2.96]
[1755725339965,8.3639,186.08,186.05,5.3746]
[1755725339966,2.99,186.07,186.04,2.96]
[1755725340570,5.3744,186.06,186.04,2.96]
[1755725342566,133.84,186.09,186.01,1.92220015]
[1755725342760,133.84,186.09,186.04,2.96]
[1755725343472,142.2036,186.09,186.07,2.96]
[1755725343664,142.2036,186.09,186.01,9.40435348]
[1755725343665,138.75220015,186.09,186.01,9.40435348]
[1755725343870,2.99,186.08,186.02,5.3752]
[1755725345666,2.99,186.09,185.99,4.52215333]
[1755725345865,133.82,186.08,186.01,2.96]
[1755725346169,136.81,186.09,186.01,2.96]
[1755725346370,136.79,186.09,186.01,2.96]
[1755725346677,2.99,186.09,186.01,2.96]
[1755725346966,142.1635,186.09,186.05,5.3744]
[1755725347171,142.1635,186.09,186.01,2.96]
[1755725347571,142.1635,186.09,186.05,8.3343]
[1755725347774,133.8,186.09,186.07,2.96]
[1755725347977,201.24832325,186.11,186.04,2.96]
[1755725348375,201.24832325,186.11,186.09,8.3332]
[1755725348770,133.78,186.12,186.1,2.96]
[1755725349075,2.99,186.15,186.06,3.00407139]
[1755725349270,136.77,186.15,186.12,2.96]
[1755725349569,136.77,186.15,186.12,8.3325]
[1755725350674,136.77,186.15,186.13,2.96]
[1755725351472,5.99407139,186.14,186.07,2.96]
[1755725351669,3.00407139,186.14,186.04,7.48215333]
[1755725351868,2.99,186.13,186.04,7.48402706]
[1755725352069,2.99,186.13,186.06,5.3741]
[1755725353175,2.99,186.11,186.06,5.3741]
[1755725353376,133.76,186.12,186.06,8.3341]
[1755725353576,2.99,186.09,186.06,8.3341]
[1755725353978,2.99,186.11,186.05,5.3745]
[1755725354877,2.99,186.1,186.06,8.3343]
[1755725355575,133.76,186.12,186.08,2.96]
[1755725355872,136.71,186.11,186.08,2.96]
[1755725356680,136.71,186.11,186.08,8.3337]
[1755725356871,2.99,186.11,186.08,8.3337]
[1755725357074,136.69,186.11,186.08,8.3337]
[1755725358366,136.69,186.11,186.08,2.96]
[1755725358569,133.7,186.12,186.09,2.96]
[1755725359175,136.69,186.12,186.09,8.3332]
[1755725360680,133.7,186.12,186.09,8.3332]
[1755725360883,2.99,186.11,186.09,8.3332]
[1755725365884,2.99,186.11,186.09,5.3732]
[1755725367683,2.99,186.11,186.09,8.4032]
[1755725368578,2.99,186.11,186.04,3.00407139]
[1755725368779,2.83,186.11,186.03,141.66813439]
[1755725369381,2.83,186.11,186.03,146.19216145]
[1755725370290,2.83,186.11,186.06,5.3741]
[1755725370482,2.83,186.1,186.06,5.3741]
[1755725370682,133.7,186.12,186.06,5.3741]
[1755725370883,2.83,186.08,186.06,5.3741]
[1755725372886,2.83,186.11,186.05,5.3745]
[1755725373992,2.83,186.09,186.03,3.03]
[1755725374885,2.83,186.09,186.04,5.3748]
[1755725375084,2.83,186.08,186.04,5.3748]
[1755725375393,2.83,186.06,186.04,5.3748]
[1755725377296,2.83,186.06,186.03,8.4051]
[1755725377495,3.00407139,186.1,186.03,8.4051]
[1755725377686,2.83,186.09,186.03,8.4051]
[1755725377882,2.83,186.09,186.03,5.3751]
[1755725379494,2.83,186.09,186.04,5.3748]
[1755725379792,2.83,186.09,186.02,3.03]
[1755725380389,2.83,186.09,186.03,5.3749]
[1755725380791,2.83,186.09,186.02,3.03]
[1755725380986,3.00407139,186.1,186.05,8.4045]
[1755725381299,2.83,186.09,186.05,8.4045]
[1755725381496,2.83,186.08,186.05,8.4045]
[1755725381693,133.7,186.12,186.06,5.3742]
[1755725381896,2.83,186.11,186.06,5.3742]
[1755725382296,2.83,186.1,186.01,3.00407139]
[1755725382499,133.7,186.12,186.02,3.03]
[1755725383697,2.83,186.11,186.08,5.3737]
[1755725384299,2.83,186.1,186.08,5.3737]
[1755725385298,2.83,186.11,186.0,7.55402706]
[1755725385504,2.83,186.11,186.01,3.03]
[1755725385996,133.7,186.12,186.06,5.3742]
[1755725386206,2.83,186.09,186.06,5.3742]
[1755725386397,2.83,186.08,186.06,5.3742]
[1755725387708,133.7,186.12,186.06,5.3742]
[1755725388003,2.83,186.1,186.07,8.4039]
[1755725388203,2.83,186.11,186.07,3.03]
[1755725388798,2.83,186.1,186.07,3.03]
[1755725389608,2.83,186.1,186.07,8.4039]
[1755725390107,2.83,186.1,186.08,3.03]
[1755725400310,2.83,186.1,186.08,8.4036]
[1755725401817,133.7,186.12,186.09,2.84]
[1755725402014,205.79409049,186.16,186.03,7.36402706]
[1755725402205,133.42,186.15,186.06,2.84]
[1755725402516,133.42,186.15,186.11,5.3727]
[1755725402816,133.42,186.15,186.09,2.84]
[1755725403014,133.42,186.15,186.13,5.372]
[1755725403214,133.42,186.15,186.09,2.84]
[1755725403713,11.92834241,186.22,186.08,3.00407139]
[1755725403714,2.85,186.21,186.12,2.84]
[1755725403916,133.42,186.23,186.15,2.84]
[1755725404107,5.85407139,186.22,186.15,2.84]
[1755725404310,2.88738018,186.18,186.11,2.84]
[1755725404512,2.85,186.16,186.11,2.84]
[1755725404817,2.85,186.16,186.07,4.52402706]
[1755725404818,2.85,186.15,186.07,2.84]
[1755725405211,2.85,186.15,186.08,5.3735]
[1755725406215,2.85,186.13,186.07,8.2139]
[1755725406517,2.85,186.1,186.07,2.84]
[1755725407219,133.38,186.11,186.1,5.3731]
[1755725407412,2.85,186.15,186.04,10.36688704]
[1755725407613,133.38,186.14,186.12,5.3723]
[1755725407812,136.23,186.14,186.12,5.3723]
[1755725408114,136.23,186.14,186.12,5.3725]
[1755725408817,2.85,186.13,186.06,2.84]
[1755725409418,136.23,186.14,186.06,2.84]
[1755725410516,2.85,186.13,186.06,2.84]
[1755725410916,133.38,186.14,186.12,2.84]
[1755725411321,133.38,186.14,186.13,5.3722]
[1755725411518,3.00407139,186.18,186.1,2.84]
[1755725411719,133.36,186.17,186.08,2.84]
[1755725411922,133.36,186.17,186.14,5.3717]
[1755725412121,2.85,186.16,186.14,5.3717]
[1755725412825,2.85,186.15,186.13,5.3721]
[1755725413028,133.36,186.17,186.13,5.3721]
[1755725413228,2.85,186.16,186.07,3.00407139]
[1755725413526,2.85,186.14,186.08,2.84]
[1755725414120,2.85,186.13,186.1,5.373]
[1755725414320,3.00407139,186.15,186.1,5.373]
[1755725414519,2.85,186.11,186.1,5.373]
[1755725416230,3.00407139,186.15,186.1,5.373]
[1755725416530,2.85,186.12,186.1,5.373]
[1755725417931,3.00407139,186.15,186.1,5.373]
[1755725418133,2.85,186.14,186.1,5.373]
[1755725418431,2.85,186.13,186.1,5.373]
[1755725418731,2.85,186.12,186.1,5.373]
[1755725421335,2.85,186.12,186.11,5.3728]
[1755725421529,3.00407139,186.15,186.11,5.3728]
[1755725421828,2.85,186.14,186.08,2.84]
[1755725423537,3.00407139,186.15,186.1,5.3729]
[1755725423836,2.85,186.13,186.1,8.2129]
[1755725424838,3.00407139,186.15,186.1,8.2129]
[1755725425038,2.85,186.12,186.1,8.2129]
[1755725427739,2.85,186.12,186.1,5.3729]
[1755725428033,3.00407139,186.15,186.07,2.96]
[1755725428034,2.99,186.14,186.07,2.96]
[1755725428441,2.99,186.14,186.08,5.3737]
[1755725429037,2.99,186.14,186.07,2.96]
[1755725429338,3.00407139,186.12,186.04,2.96]
[1755725429536,2.99,186.11,186.04,2.96]
[1755725429736,2.99,186.09,186.04,8.3347]
[1755725430040,133.22,186.1,186.04,8.3347]
[1755725430243,2.99,186.07,186.04,8.3347]
[1755725430741,2.99,186.07,186.05,5.3745]
[1755725431043,2.99,186.09,186.04,2.96]
[1755725431444,133.22,186.1,186.04,2.96]
[1755725431644,2.99,186.07,186.04,2.96]
[1755725431939,2.99,186.07,186.03,5.375]
[1755725431940,2.99,186.06,186.03,2.96]
[1755725432537,3.00407139,186.09,186.0,2.96]
[1755725432742,2.99,186.08,186.0,2.96]
[1755725433543,2.99,186.08,186.0,8.3359]
[1755725434043,2.99,186.08,186.0,2.96]
[1755725447055,2.99,186.05,185.97,2.96]
[1755725447251,2.99,186.03,185.97,2.96]
[1755725447751,2.99,186.03,185.98,2.96]
[1755725447958,2.99,186.03,186.0,2.96]
[1755725448546,2.99,186.03,185.98,2.96]
[1755725448754,2.99,186.03,185.97,5.3768]
[1755725449050,2.99,186.03,186.01,2.96]
[1755725452559,2.99,186.03,186.0,2.96]
[1755725453260,2.99,186.03,186.01,2.96]
[1755725457063,133.16,186.04,185.97,2.82]
[1755725458166,133.16,186.04,185.97,8.1968]
[1755725458462,3.00407139,186.06,185.94,3.00407139]
[1755725458668,133.1,186.07,185.99,5.3761]
[1755725458964,133.1,186.07,186.0,2.82]
[1755725459462,361.18,186.12,186.0,2.82]
[1755725459463,2.82,186.11,186.0,3.00407139]
[1755725459769,133.1,186.1,186.01,2.82]
[1755725460262,133.1,186.1,186.02,5.3752]
[1755725460567,133.1,186.1,186.03,2.82]
[1755725460868,133.1,186.1,186.03,8.1951]
[1755725461065,133.1,186.1,186.04,2.82]
[1755725463967,2.82,186.08,186.04,2.82]
[1755725464159,2.82,186.07,186.04,2.82]
[1755725464563,2.82,186.09,186.01,2.82]
[1755725465361,2.82,186.07,186.01,2.82]
[1755725467168,2.82,186.07,185.97,2.82]
[1755725472770,2.82,186.04,185.97,2.82]
[1755725472973,2.82,186.02,185.97,2.82]
[1755725473176,2.82,186.0,185.97,2.82]
[1755725473374,2.82,186.0,185.98,2.82]
[1755725473575,2.82,186.02,185.96,2.82]
[1755725475682,133.0,186.03,185.96,2.82]
[1755725477275,133.0,186.03,185.97,2.82]
[1755725477780,133.0,186.03,185.97,8.1968]
[1755725478380,133.0,186.03,185.98,2.82]
[1755725478585,2.82,186.02,185.99,2.82]
[1755725479479,2.82,186.02,185.96,2.82]
[1755725480179,2.82,186.02,185.94,7.52587113]
[1755725480481,2.82,186.02,185.99,2.82]
[1755725481483,133.0,186.03,185.99,2.82]
[1755725481782,2.82,186.01,185.99,2.82]
[1755725483786,133.0,186.03,185.99,2.82]
[1755725484084,2.82,186.02,185.99,2.82]
[1755725485778,2.82,186.02,185.97,5.3768]
[1755725485982,2.82,186.02,185.99,2.85]
[1755725487483,2.82,186.02,185.97,5.3768]
[1755725487686,2.82,186.02,185.99,2.85]
[1755725489581,2.95,186.02,185.95,5.3772]
[1755725489883,2.95,186.02,185.95,2.85]
[1755725490283,2.95,186.02,185.96,5.3769]
[1755725490487,2.95,186.02,185.99,2.85]
[1755725494582,2.95,186.02,185.97,5.3768]
[1755725494988,2.95,186.02,186.0,2.85]
[1755725499191,2.95,186.02,185.97,2.85]
[1755725499491,2.95,186.01,185.99,2.85]
[1755725507308,133.0,186.03,185.96,7.30056565]
[1755725507504,133.0,186.03,185.97,2.85]
[1755725507708,133.0,186.03,185.97,8.2268]
[1755725507905,133.0,186.03,185.97,5.3768]
[1755725508310,2.95,186.02,185.97,5.3768]
[1755725508499,2.95,186.02,186.0,2.85]
[1755725508807,133.0,186.03,186.0,2.85]
[1755725509004,2.95,186.01,185.96,7.30056565]
[1755725509214,2.95,186.01,185.98,2.85]
[1755725509414,2.95,186.01,185.99,2.85]
[1755725511509,2.95,186.01,185.96,7.30056565]
[1755725511709,2.95,186.01,185.97,2.85]
[1755725511908,2.95,186.01,185.98,2.85]
[1755725512208,2.95,186.0,185.98,2.85]
[1755725512507,2.95,186.02,185.99,2.85]
[1755725513510,2.95,186.02,186.0,2.85]
[1755725517711,2.79,186.01,185.96,9.90600818]
[1755725517917,2.79,186.01,185.96,11.82957383]
[1755725518108,2.79,186.01,185.98,3.0]
[1755725519005,2.79,186.01,185.96,11.82957383]
[1755725519202,2.79,186.02,185.96,7.30056565]
[1755725519807,2.79,186.02,185.95,4.52900818]
[1755725520009,2.79,186.02,185.95,6.45257383]
[1755725520209,2.79,186.02,185.96,3.0]
[1755725521516,4.71356565,186.02,185.96,3.0]
[1755725522011,2.79,186.01,185.96,3.0]
[1755725522214,2.79,185.99,185.96,3.0]
[1755725522809,2.79,186.01,185.95,4.52900818]
[1755725523011,133.0,186.03,185.91,4.52900818]
[1755725523012,1.92356565,185.96,185.91,4.52900818]
[1755725523218,132.72,185.95,185.91,3.0]
[1755725523512,2.79,185.94,185.89,4.52900818]
[1755725523819,2.79,185.94,185.88,6.45257383]
[1755725524013,2.79,185.94,185.89,3.0]
[1755725524214,2.79,185.94,185.88,1.92356565]
[1755725524417,2.79,185.94,185.91,3.0]
[1755725524812,2.79,185.94,185.88,7.30286565]
[1755725524813,2.79,185.97,185.92,4.92356565]
[1755725525011,132.72,185.95,185.93,3.0]
[1755725525412,135.51,185.95,185.93,3.0]
[1755725526619,132.72,185.95,185.89,5.3791]
[1755725526818,135.51,185.95,185.89,7.30266565]
[1755725527019,135.51,185.95,185.92,3.0]
[1755725528020,135.51,185.95,185.9,5.3788]
[1755725528323,135.51,185.95,185.92,3.0]
[1755725529920,2.79,185.95,185.92,3.0]
[1755725531525,2.79,185.95,185.93,3.0]
[1755725532229,2.79,185.96,185.9,3.0]
[1755725533230,2.79,185.96,185.9,8.3788]
[1755725533422,2.79,185.96,185.9,10.30236565]
[1755725534729,4.71356565,185.96,185.9,10.30236565]
[1755725535125,4.71356565,185.96,185.9,3.0]
[1755725536027,1.92356565,185.96,185.9,3.0]
[1755725536222,2.79,185.95,185.89,5.3789]
[1755725536422,2.79,185.94,185.91,3.0]
[1755725538229,1.92356565,185.96,185.91,3.0]
[1755725538423,2.79,185.94,185.91,3.0]
[1755725538825,2.79,185.93,185.91,3.0]
[1755725542128,1.92356565,185.96,185.88,5.3794]
[1755725542326,0.03641216,185.94,185.92,3.0]
[1755725542533,2.82641216,185.94,185.92,3.0]
[1755725544538,5.378,185.93,185.92,3.0]
[1755725549439,5.3784,185.92,185.9,2.85]
[1755725549640,5.3784,185.92,185.91,2.85]
[1755725550044,5.3787,185.91,185.89,1.92356565]
[1755725550337,0.03641216,185.94,185.85,4.51345073]
[1755725550538,2.94,185.92,185.89,2.85]
[1755725550740,5.3789,185.91,185.9,2.85]
[1755725551643,5.3791,185.9,185.88,1.92356565]
[1755725551841,2.94,185.91,185.88,4.77356565]
[1755725552145,2.94,185.91,185.88,2.85]
[1755725552645,5.3792,185.89,185.88,2.85]
[1755725553746,0.04093439,185.92,185.87,2.85]
[1755725553946,2.94,185.9,185.87,2.85]
[1755725554542,5.3794,185.89,185.87,2.85]
[1755725554742,5.3794,185.89,185.88,2.85]
[1755725555542,2.98093439,185.92,185.84,7.36345073]
[1755725555740,2.94,185.91,185.84,1.92356565]
[1755725555939,2.94,185.91,185.83,4.51345073]
[1755725555940,2.94,185.91,185.85,4.77356565]
[1755725556145,2.94,185.91,185.85,1.92356565]
[1755725556447,2.94,185.89,185.86,2.85]
[1755725556740,5.3798,185.87,185.86,2.85]
[1755725562349,5.3796,185.88,185.86,2.85]
[1755725563051,5.3798,185.87,185.86,2.85]
[1755725565451,5.3801,185.86,185.85,1.92356565]
[1755725565651,8.3201,185.86,185.85,1.92356565]
[1755725566154,8.3201,185.86,185.84,4.77356565]
[1755725566654,5.3801,185.86,185.84,7.30416565]
[1755725566853,5.3801,185.86,185.85,2.85]
[1755725567155,5.41540533,185.87,185.85,2.85]
[1755725567359,5.41540533,185.87,185.86,2.85]
[1755725567954,8.35540533,185.87,185.84,5.3806]
[1755725568150,5.41540533,185.87,185.85,1.92356565]
[1755725568355,5.41540533,185.87,185.85,4.77356565]
[1755725568757,5.41540533,185.87,185.85,1.92356565]
[1755725568958,5.41540533,185.87,185.86,2.85]
[1755725569349,0.03550533,185.87,185.86,2.85]
[1755725570259,0.03550533,185.87,185.86,8.2301]
[1755725571561,0.03550533,185.87,185.86,10.15366565]
[1755725572862,0.03550533,185.87,185.86,4.77356565]
[1755725575863,0.03550533,185.87,185.86,10.15366565]
[1755725577162,5.41540533,185.87,185.83,4.51345073]
[1755725577360,5.41540533,185.87,185.85,2.85]
[1755725578557,5.41540533,185.87,185.85,5.3803]
[1755725578863,0.03550533,185.87,185.86,2.85]
[1755725580166,0.03550533,185.87,185.86,10.15366565]
[1755725582058,0.03550533,185.87,185.86,4.77356565]
[1755725583662,0.03550533,185.87,185.86,7.30366565]
[1755725583869,0.03550533,185.87,185.86,10.15366565]
[1755725591970,0.03550533,185.87,185.86,7.30366565]
[1755725596771,0.03550533,185.87,185.86,5.3801]
[1755725596973,0.03550533,185.87,185.84,5.3806]
[1755725596974,2.93,185.85,185.84,5.3806]
[1755725598872,0.03550533,185.87,185.83,6.43701638]
[1755725599079,2.93,185.84,185.83,1.92356565]
[1755725600373,2.93,185.84,185.83,7.30456565]
[1755725601376,2.93,185.84,185.83,10.15456565]
[1755725601681,0.03550533,185.87,185.84,5.3805]
[1755725601874,2.93,185.86,185.84,8.2305]
[1755725602076,2.93,185.85,185.84,7.30406565]
[1755725602480,2.93,185.85,185.84,5.3805]
[1755725602778,2.93,185.85,185.84,7.30406565]
[1755725604083,2.93,185.85,185.83,10.15446565]
[1755725604271,2.93,185.85,185.83,8.2309]
[1755725604475,2.93,185.85,185.83,4.77356565]
[1755725605682,2.93,185.85,185.84,5.3807]
[1755725607180,5.41540533,185.87,185.84,5.3807]
[1755725607586,3.0,185.85,185.84,5.3807]
[1755725609186,0.03550533,185.87,185.83,6.43701638]
[1755725609382,0.03550533,185.87,185.86,1.92356565]
[1755725609582,0.03550533,185.87,185.86,4.96356565]
[1755725610392,0.03550533,185.87,185.86,10.34366565]
[1755725610980,0.03550533,185.87,185.86,7.30366565]
[1755725613090,0.03550533,185.87,185.86,5.3801]
[1755725613291,3.0,185.86,185.85,5.3803]
[1755725619398,0.03550533,185.87,185.86,5.3801]
[1755725619591,0.03550533,185.87,185.86,8.4201]
[1755725620703,0.03550533,185.87,185.86,10.34366565]
[1755725628705,140.35373369,185.93,185.92,5.3783]
[1755725628706,3.0,185.93,185.92,5.3783]
[1755725630400,3.0,185.96,185.93,5.378]
[1755725630600,132.74,185.97,185.93,5.378]
[1755725630901,3.0,185.94,185.93,5.378]
[1755725633208,1.92356565,186.03,185.93,1.92356565]
[1755725633406,3.0,186.01,185.95,1.92356565]
[1755725633597,16.1221,186.07,185.99,1.92356565]
[1755725633598,1.92356565,186.07,185.99,1.92356565]
[1755725633798,3.0,186.05,185.99,1.92356565]
[1755725634400,3.0,186.05,186.0,5.3758]
[1755725636102,1.92356565,186.03,185.95,1.92356565]
[1755725636407,3.07,186.0,185.93,4.78356565]
[1755725636601,3.07,186.0,185.94,5.3776]
[1755725639315,3.07,186.0,185.93,10.16156565]
[1755725640413,3.07,186.0,185.93,8.238]
[1755725640607,3.07,186.0,185.89,2.86]
[1755725640811,3.07,186.0,185.87,2.86]
[1755725640812,3.07,185.99,185.87,2.86]
[1755725641312,3.07,185.97,185.87,2.86]
[1755725642512,3.07,185.95,185.92,5.3783]
[1755725643112,3.07,185.97,185.92,5.3783]
[1755725643311,3.07,185.96,185.92,5.3783]
[1755725643508,132.54,185.98,185.92,5.3783]
[1755725643700,132.54,185.98,185.89,2.86]
[1755725643907,3.07,185.93,185.89,2.86]
[1755725644106,3.07,185.93,185.86,3.00682705]
[1755725644314,3.07,185.93,185.9,8.2387]
[1755725644914,3.07,185.92,185.9,5.3787]
[1755725649612,3.07,185.92,185.91,5.3787]
[1755725650007,3.07,185.92,185.88,2.86]
[1755725650211,3.07,185.92,185.89,2.86]
[1755725650514,3.07,185.92,185.9,5.3788]
[1755725655520,3.07,185.92,185.9,8.2388]
[1755725655720,3.07,185.92,185.91,5.3787]
[1755725663626,3.07,185.94,185.91,5.3787]
[1755725663826,3.07,185.93,185.91,5.3787]
[1755725664023,3.07,185.93,185.92,5.3784]
[1755725664228,3.07,185.95,185.92,5.3784]
[1755725664430,3.07,185.94,185.92,5.3784]
[1755725665029,3.07,185.94,185.91,8.2386]
[1755725665225,3.07,185.94,185.91,2.86]
[1755725665432,3.07,185.95,185.89,0.03448267]
[1755725665727,3.07,185.95,185.89,1.95957695]
[1755725665927,132.52,185.96,185.91,5.3785]
[1755725666127,2.94,185.94,185.91,5.3785]
[1755725666833,2.94,185.93,185.91,8.3085]
[1755725667534,132.52,185.96,185.91,8.3085]
[1755725667834,2.94,185.95,185.91,8.3085]
[1755725668031,132.52,185.96,185.91,8.3085]
[1755725668228,2.94,185.94,185.91,8.3085]
[1755725670738,2.94,185.94,185.91,5.3785]
[1755725670940,2.94,185.95,185.9,5.3789]
[1755725671240,132.52,185.96,185.9,2.93]
[1755725671435,2.94,185.93,185.9,2.93]
[1755725671735,1.92509428,185.95,185.89,0.03448267]
[1755725671940,2.94,185.91,185.89,0.03448267]
[1755725672240,2.94,185.91,185.89,2.96448267]
[1755725674043,2.94,185.94,185.89,0.03448267]
[1755725678647,2.94,185.92,185.89,0.03448267]
[1755725678841,2.94,185.9,185.89,0.03448267]
[1755725683347,135.44,185.9,185.89,0.03448267]
[1755725689749,2.94,185.9,185.89,0.03448267]
[1755725689948,135.44,185.9,185.89,0.03448267]
[1755725691149,2.94,185.9,185.89,0.03448267]
[1755725691451,132.5,185.9,185.89,2.96448267]
[1755725691642,132.5,185.9,185.89,0.03448267]
[1755725691848,132.5,185.9,185.89,2.96448267]
[1755725701148,132.5,185.9,185.89,0.03448267]
[1755725701657,132.5,185.9,185.89,2.82448267]
[1755725705062,132.5,185.9,185.89,8.20378267]
[1755725707856,132.46,185.93,185.91,5.3787]
[1755725708963,132.46,185.93,185.9,5.3789]
[1755725709160,132.46,185.93,185.9,8.1689]
[1755725709663,132.46,185.93,185.91,5.3787]
[1755725710161,132.46,185.93,185.91,8.1687]
[1755725711063,132.46,185.93,185.91,5.3787]
[1755725711262,132.46,185.93,185.92,2.79]
[1755725712165,2.87,185.95,185.92,8.1684]
[1755725712365,132.44,185.94,185.92,5.3784]
[1755725712665,132.44,185.94,185.89,4.74957695]
[1755725712965,132.44,185.94,185.91,2.79]
[1755725713163,135.31,185.94,185.91,5.3785]
[1755725713465,135.31,185.94,185.92,2.79]
[1755725714664,2.87,185.93,185.9,5.3788]
[1755725714864,2.87,185.93,185.9,2.79]
[1755725715065,2.87,185.93,185.91,5.3786]
[1755725715267,2.87,185.93,185.91,8.1686]
[1755725716366,135.31,185.94,185.91,2.79]
[1755725716567,2.87,185.93,185.89,1.95957695]
[1755725716766,2.87,185.92,185.89,4.74957695]
[1755725717167,132.44,185.94,185.89,4.74957695]
[1755725717168,2.87,185.93,185.91,2.79]
[1755725717870,2.87,185.93,185.89,10.12867695]
[1755725718065,2.87,185.93,185.89,7.33867695]
[1755725718267,2.87,185.93,185.9,2.79]
[1755725721475,2.87,185.93,185.9,5.379]
[1755725721973,132.44,185.94,185.91,8.1687]
[1755725722373,135.31,185.94,185.89,1.95957695]
[1755725722566,2.87,185.93,185.89,10.12867695]
[1755725722772,132.44,185.94,185.89,1.95957695]
[1755725722972,2.87,185.92,185.9,2.79]
[1755725723174,2.87,185.92,185.9,8.1689]
[1755725723973,2.87,185.96,185.9,8.1689]
[1755725724175,135.25,185.93,185.9,8.1689]
[1755725725273,2.87,185.93,185.9,8.1689]
[1755725725474,135.25,185.93,185.9,8.1689]
[1755725726776,2.87,185.93,185.9,8.1689]
[1755725728179,132.38,185.94,185.9,8.1689]
[1755725728479,2.79,185.93,185.9,8.2589]
[1755725731382,2.79,185.92,185.89,0.03448267]
[1755725731980,2.79,185.92,185.89,5.41378267]
[1755725732181,2.79,185.92,185.89,8.29378267]
[1755725732578,132.36,185.94,185.89,0.03448267]
[1755725732785,2.79,185.9,185.89,0.03448267]
[1755725735385,132.36,185.94,185.89,0.03448267]
[1755725735580,2.79,185.91,185.89,0.03448267]
[1755725740186,2.79,185.91,185.89,5.41368267]
[1755725740681,2.79,185.91,185.9,5.379]
[1755725740881,1.92509428,185.95,185.9,8.259]
[1755725740882,132.32,185.92,185.9,8.259]
[1755725741088,135.11,185.92,185.9,8.259]
[1755725741283,132.32,185.92,185.91,5.3787]
[1755725741481,157.91027853,185.95,185.9,1.92509428]
[1755725741687,157.91027853,185.95,185.92,2.88]
[1755725742189,157.91027853,185.95,185.92,8.2582]
[1755725742690,157.91027853,185.95,185.93,5.3781]
[1755725742887,132.32,185.96,185.93,2.88]
[1755725743088,135.11,185.96,185.94,2.88]
[1755725743289,132.32,185.96,185.94,8.2578]
[1755725743485,135.11,185.96,185.94,8.2578]
[1755725743790,132.32,185.96,185.95,2.88]
[1755725744787,132.32,185.96,185.95,8.2575]
[1755725746291,135.09,185.99,185.96,8.2572]
[1755725747194,135.09,185.99,185.97,8.257]
[1755725748396,132.3,185.99,185.98,5.3767]
[1755725748594,132.3,185.99,185.98,8.2567]
[1755725750992,135.07,186.02,185.98,8.2567]